bitfinex-derivatives/quotes_BTCF0:USTF0_20251217
["timestamp","ask_amount","ask_price","bid_price","bid_amount"]
[1765951661585,1.21099,86776.0,86775.0,0.18245]
[1765951665377,1.21099,86776.0,86775.0,0.35792]
[1765951665683,1.21095,86776.0,86775.0,0.35792]
[1765951666281,0.10989,86778.0,86777.0,0.34728]
[1765951666489,0.06097789,86779.0,86778.0,0.3588061]
[1765951666695,0.03555129,86779.0,86778.0,0.3588061]
[1765951667890,0.03555129,86779.0,86778.0,0.42057336]
[1765951668089,0.03555129,86779.0,86778.0,0.3588061]
[1765951668293,0.03555129,86779.0,86778.0,0.3608061]
[1765951668588,0.03555129,86779.0,86778.0,0.3628061]
[1765951671180,0.03555129,86779.0,86778.0,0.40390822]
[1765951673091,0.03555129,86779.0,86778.0,0.3628061]
[1765951673277,0.90625336,86780.0,86779.0,0.34602]
[1765951673482,0.90625336,86780.0,86778.0,0.0155261]
[1765951673483,0.38737,86779.0,86778.0,0.0155261]
[1765951673680,0.38737,86779.0,86778.0,0.3606161]
[1765951673988,0.38737,86779.0,86778.0,0.004]
[1765951674377,0.38737,86779.0,86778.0,0.002]
[1765951674882,0.38737,86774.0,86773.0,0.3608]
[1765951675282,0.38737,86774.0,86773.0,0.54999]
[1765951675482,1.10957,86774.0,86773.0,0.54999]
[1765951675687,1.10957,86774.0,86773.0,0.73905]
[1765951676993,1.10957,86774.0,86773.0,0.74005]
[1765951677189,1.10957,86774.0,86773.0,0.74105]
[1765951678894,1.10957,86774.0,86773.0,0.3628]
[1765951680595,1.10957,86774.0,86773.0,0.002]
[1765951690600,1.10957,86774.0,86773.0,0.17772]
[1765951690996,1.10957,86774.0,86773.0,0.002]
[1765951702105,1.10957,86774.0,86773.0,0.32969]
[1765951702309,0.38737,86774.0,86773.0,0.32969]
[1765951702610,1.10957,86774.0,86773.0,0.32969]
[1765951707515,1.10957,86774.0,86773.0,0.002]
[1765951710108,1.10953,86774.0,86773.0,0.002]
[1765951710516,1.10953,86774.0,86773.0,0.14847]
[1765951711213,1.10953,86774.0,86773.0,0.29485]
[1765951713609,1.10953,86774.0,86773.0,0.14847]
[1765951713918,1.10953,86774.0,86773.0,0.002]
[1765951730828,0.48177,86764.0,86763.0,0.3608]
[1765951731132,1.20385,86764.0,86763.0,0.3608]
[1765951731832,0.18491,86756.0,86755.0,0.40103212]
[1765951732026,0.47093,86764.0,86763.0,0.3734581]
[1765951732027,0.54588283,86764.0,86763.0,0.3734581]
[1765951732226,1.10760283,86764.0,86763.0,0.3734581]
[1765951732426,1.10760283,86764.0,86763.0,0.3754581]
[1765951733035,0.00017283,86764.0,86763.0,0.3754581]
[1765951733232,0.00017283,86764.0,86763.0,0.7754581]
[1765951733626,0.00017283,86764.0,86763.0,0.78698382]
[1765951733838,0.00017283,86764.0,86763.0,0.7754581]
[1765951734025,0.00017283,86764.0,86763.0,0.7734581]
[1765951734638,0.00017283,86764.0,86763.0,0.7754581]
[1765951735739,0.00017283,86764.0,86763.0,0.78690993]
[1765951736248,0.00017283,86764.0,86763.0,0.38690993]
[1765951736441,0.00017283,86764.0,86763.0,0.78690993]
[1765951736640,0.00017283,86764.0,86763.0,0.7754581]
[1765951739349,0.18508283,86764.0,86763.0,0.7754581]
[1765951739753,0.48194283,86764.0,86763.0,0.4166707]
[1765951740060,0.48194283,86764.0,86763.0,0.0155281]
[1765951740352,0.48194283,86764.0,86763.0,0.1871881]
[1765951741644,0.48194283,86764.0,86763.0,0.004]
[1765951742455,1.20394283,86764.0,86763.0,0.004]
[1765951742653,1.20394283,86764.0,86763.0,0.17566]
[1765951742847,1.20394283,86764.0,86763.0,0.004]
[1765951743354,1.20394283,86764.0,86763.0,0.36393]
[1765951744354,1.20394283,86764.0,86763.0,0.004]
[1765951747646,1.20394283,86764.0,86763.0,0.19682]
[1765951747848,1.20394283,86764.0,86763.0,0.004]
[1765951750352,0.00017283,86764.0,86763.0,0.38215]
[1765951750557,0.00017283,86764.0,86763.0,0.74295]
[1765951750853,0.07725338,86771.0,86770.0,0.47731]
[1765951751050,0.07725338,86771.0,86770.0,0.4888372]
[1765951751454,0.07725338,86771.0,86770.0,0.52999198]
[1765951752963,0.07725338,86771.0,86770.0,0.53099198]
[1765951753263,0.07725338,86771.0,86770.0,0.8506372]
[1765951753556,9e-08,86780.0,86779.0,0.37815]
[1765951753763,0.72196,86802.0,86799.0,0.3896733]
[1765951753764,0.4761,86800.0,86799.0,0.3896733]
[1765951753950,0.36873,86800.0,86799.0,0.3896733]
[1765951754145,0.18156,86800.0,86799.0,0.3896733]
[1765951754349,0.72953,86808.0,86807.0,0.3896723]
[1765951754765,0.72953,86814.0,86813.0,0.37815]
[1765951757160,0.36873,86814.0,86813.0,0.37815]
[1765951757360,0.00017283,86816.0,86815.0,0.37815]
[1765951757361,3e-08,86816.0,86815.0,0.37815]
[1765951757552,0.24107732,86850.0,86836.0,0.3896684]
[1765951757553,0.38041945,86837.0,86836.0,0.3896684]
[1765951757752,0.35411729,86837.0,86836.0,0.3896684]
[1765951758856,0.35411729,86837.0,86829.0,0.3608]
[1765951758857,0.36873,86832.0,86831.0,0.3896691]
[1765951759055,0.36873,86829.0,86828.0,0.37832283]
[1765951760151,0.36873,86829.0,86828.0,0.00017283]
[1765951760863,0.36873,86829.0,86828.0,0.00117283]
[1765951761354,0.36973,86829.0,86828.0,0.00117283]
[1765951762360,0.36973,86829.0,86828.0,0.00017283]
[1765951762560,0.37073,86829.0,86828.0,0.00017283]
[1765951763658,0.36873,86829.0,86828.0,0.00017283]
[1765951763865,0.37073,86829.0,86828.0,0.00017283]
[1765951765859,0.36973,86829.0,86828.0,0.00017283]
[1765951766168,0.37073,86829.0,86828.0,0.00017283]
[1765951768869,0.73153,86829.0,86828.0,0.00017283]
[1765951769171,0.37073,86829.0,86828.0,0.37832283]
[1765951769570,0.37073,86829.0,86828.0,0.19299283]
[1765951769870,0.36973,86829.0,86828.0,0.00017283]
[1765951770270,0.36873,86829.0,86828.0,0.00017283]
[1765951770459,0.36973,86829.0,86828.0,0.00017283]
[1765951770655,0.36973,86829.0,86828.0,0.37832283]
[1765951770969,0.37073,86829.0,86828.0,0.37832283]
[1765951771570,0.002,86829.0,86828.0,0.37832283]
[1765951772957,0.001,86829.0,86828.0,0.37832283]
[1765951773166,1.09025,86837.0,86836.0,0.37815]
[1765951774173,1.09025,86837.0,86836.0,0.3896684]
[1765951774373,0.90308,86837.0,86836.0,0.3896684]
[1765951775262,1.12238,86837.0,86836.0,0.3896684]
[1765951779366,0.42816283,86845.0,86844.0,0.5867774]
[1765951781170,0.00017283,86845.0,86844.0,0.5867774]
[1765951781566,0.20885283,86845.0,86844.0,0.5867774]
[1765951782776,0.20885283,86845.0,86844.0,0.5877774]
[1765951782964,0.20885283,86845.0,86844.0,0.5887774]
[1765951783881,0.42816283,86845.0,86844.0,0.4551474]
[1765951784174,0.42816283,86845.0,86844.0,0.0135174]
[1765951784374,0.42816283,86845.0,86844.0,0.4551474]
[1765951784580,0.42816283,86845.0,86844.0,0.5887774]
[1765951785480,0.42816283,86845.0,86844.0,0.5877774]
[1765951785671,0.00017283,86845.0,86844.0,0.5877774]
[1765951785877,0.00017283,86845.0,86844.0,0.5867774]
[1765951786876,0.20885283,86845.0,86844.0,0.5867774]
[1765951787270,0.42816283,86845.0,86844.0,0.0115174]
[1765951787473,0.42816283,86845.0,86841.0,0.0115177]
[1765951787474,0.42799,86842.0,86841.0,0.0115177]
[1765951787667,0.42799,86842.0,86841.0,0.2393777]
[1765951787870,0.42799,86842.0,86841.0,0.4531477]
[1765951788777,0.3608,86890.0,86889.0,0.4531414]
[1765951788977,0.54340156,86898.0,86897.0,0.44163]
[1765951789368,0.54340156,86898.0,86897.0,1.38163]
[1765951789678,0.55658,86910.0,86909.0,0.4531388]
[1765951789878,0.42799,86910.0,86909.0,0.8139388]
[1765951790080,0.42799,86910.0,86909.0,1.1747388]
[1765951791576,0.42999,86910.0,86909.0,1.1747388]
[1765951792283,0.42999,86910.0,86909.0,0.7331088]
[1765951792483,0.004,86910.0,86909.0,0.3608]
[1765951792674,0.42799,86898.0,86897.0,0.94]
[1765951792977,0.42799,86898.0,86897.0,0.9515103]
[1765951793479,0.3608,86909.0,86908.0,0.44163]
[1765951793678,0.42799,86909.0,86908.0,0.22786]
[1765951793878,0.42799,86909.0,86908.0,0.2393689]
[1765951794075,0.42799,86909.0,86908.0,0.4531389]
[1765951794269,0.002,86910.0,86909.0,0.44163]
[1765951794988,0.20885262,86918.0,86917.0,0.4531377]
[1765951795884,0.42816262,86918.0,86917.0,0.4531377]
[1765951796584,0.43116262,86918.0,86917.0,0.4531377]
[1765951796987,0.43416262,86918.0,86917.0,0.4531377]
[1765951797588,0.00589214,86918.0,86917.0,0.4531377]
[1765951801176,0.43388214,86918.0,86917.0,0.4531377]
[1765951801487,0.42799,86915.0,86914.0,0.3608]
[1765951801987,4e-08,86918.0,86917.0,0.44163]
[1765951802189,0.00017262,86926.0,86925.0,0.4531366]
[1765951802390,0.00017262,86926.0,86925.0,0.8139366]
[1765951803779,0.3608,86957.0,86937.0,0.44163]
[1765951804087,0.3608,86957.0,86956.0,0.4531325]
[1765951804088,0.42799,86957.0,86956.0,0.4531325]
[1765951804288,0.44799,86957.0,86956.0,0.4531325]
[1765951804488,0.44799,86957.0,86956.0,0.0115025]
[1765951804682,0.44799,86957.0,86956.0,0.6035225]
[1765951804882,0.44799,86957.0,86956.0,0.2964625]
[1765951805189,0.44799,86957.0,86956.0,0.6035225]
[1765951805394,0.44799,86957.0,86956.0,0.2964625]
[1765951805596,0.45099,86957.0,86956.0,0.2964625]
[1765951806283,0.45099,86957.0,86956.0,0.0115025]
[1765951806692,0.45399,86957.0,86956.0,0.0115025]
[1765951808495,0.45557894,86957.0,86956.0,0.0115025]
[1765951808689,0.02758894,86957.0,86956.0,0.6041725]
[1765951808994,0.00011453,86965.0,86964.0,0.6041715]
[1765951809192,0.00011453,86965.0,86964.0,0.9649715]
[1765951809794,0.57165453,86965.0,86964.0,0.3608]
[1765951810293,0.57665453,86965.0,86964.0,0.3618]
[1765951810893,0.57665453,86965.0,86964.0,0.001]
[1765951811295,0.58065453,86965.0,86964.0,0.001]
[1765951811698,0.57665453,86965.0,86964.0,0.001]
[1765951811896,0.57765453,86965.0,86964.0,0.001]
[1765951812096,0.57154,86961.0,86960.0,0.0115019]
[1765951812794,0.57465453,86965.0,86964.0,0.58925]
[1765951813021,0.57154,86957.0,86956.0,0.3723025]
[1765951813192,0.57154,86957.0,86956.0,0.6763125]
[1765951813699,0.57154,86957.0,86956.0,0.9615525]
[1765951814092,0.00111453,86965.0,86964.0,0.6007515]
[1765951814295,0.00111453,86965.0,86964.0,0.9615515]
[1765951815694,0.57383945,86978.0,86977.0,0.0114998]
[1765951816701,0.57383945,86978.0,86977.0,0.6007498]
[1765951816702,0.00229945,86978.0,86977.0,0.6007498]
[1765951817404,0.00529945,86978.0,86977.0,0.6007498]
[1765951817906,0.00729945,86978.0,86977.0,0.6007498]
[1765951819506,0.57883945,86978.0,86977.0,0.6007498]
[1765951820107,0.00729945,86978.0,86977.0,0.6007498]
[1765951821007,0.57883945,86978.0,86977.0,0.6007498]
[1765951821799,0.57383945,86978.0,86977.0,0.0144998]
[1765951822000,0.57383945,86978.0,86977.0,0.6057498]
[1765951822202,0.00397919,86978.0,86977.0,0.6057498]
[1765951822408,0.29142919,86978.0,86977.0,0.6047498]
[1765951822711,0.57623195,86978.0,86977.0,0.3185098]
[1765951823003,0.57694471,86978.0,86977.0,0.0144998]
[1765951823206,0.57694471,86978.0,86977.0,0.003]
[1765951823413,0.57765747,86978.0,86977.0,0.002]
[1765951823612,0.57765747,86978.0,86977.0,0.003]
[1765951823795,0.57383945,86978.0,86977.0,0.003]
[1765951824000,0.57383945,86978.0,86968.0,0.0115008]
[1765951824001,0.57154,86970.0,86968.0,0.0115008]
[1765951824409,0.57678354,86970.0,86965.0,0.3608]
[1765951824708,0.5774963,86970.0,86966.0,0.0115011]
[1765951825308,0.57820906,86970.0,86969.0,0.0011725]
[1765951826107,0.57820906,86970.0,86969.0,0.3619725]
[1765951827516,0.57820906,86970.0,86969.0,0.3629725]
[1765951828008,0.57820906,86970.0,86969.0,0.3619725]
[1765951828706,0.57820906,86970.0,86969.0,0.3609725]
[1765951829411,0.57920906,86970.0,86969.0,0.3609725]
[1765951831610,0.57920906,86970.0,86954.0,0.3608]
[1765951831611,0.57154,86955.0,86954.0,0.3608]
[1765951831807,0.57154,86955.0,86948.0,0.3608]
[1765951831808,0.57154,86949.0,86948.0,0.3608]
[1765951832202,0.57154,86938.0,86937.0,0.95005]
[1765951833407,0.57820906,86938.0,86937.0,0.95005]
[1765951833710,0.57820906,86938.0,86937.0,0.95405]
[1765951834108,0.57820906,86938.0,86937.0,0.3648]
[1765951834305,0.57820906,86938.0,86937.0,0.3678]
[1765951834507,0.57820906,86938.0,86937.0,0.65744]
[1765951835004,0.57820906,86938.0,86937.0,0.95735]
[1765951838006,0.57820906,86938.0,86937.0,0.3678]
[1765951840414,0.57820906,86938.0,86937.0,0.3648]
[1765951840717,0.57920906,86938.0,86937.0,0.3608]
[1765951841215,0.57820906,86938.0,86937.0,0.3608]
[1765951841518,0.59552,86930.0,86929.0,0.3085025]
[1765951842503,0.60218906,86930.0,86929.0,0.3085025]
[1765951842917,0.60218906,86930.0,86929.0,0.0001725]
[1765951843115,0.59552,86922.0,86921.0,0.3608]
[1765951843614,0.60218906,86922.0,86921.0,0.3608]
[1765951844621,0.60218906,86922.0,86921.0,0.3628]
[1765951845022,0.60218906,86922.0,86921.0,0.3638]
[1765951846117,0.60218906,86922.0,86921.0,0.003]
[1765951849311,0.60218906,86922.0,86921.0,0.6132772]
[1765951849516,0.60235831,86922.0,86921.0,0.6132772]
[1765951850217,0.60235831,86922.0,86921.0,0.0145072]
[1765951850720,0.60235831,86922.0,86921.0,0.3228372]
[1765951852925,0.96315831,86922.0,86921.0,0.003]
[1765951854017,0.60235831,86922.0,86921.0,0.60177]
[1765951854515,0.60235831,86922.0,86921.0,0.31133]
[1765951856622,0.60235831,86922.0,86921.0,0.31033]
[1765951860130,0.60235831,86922.0,86921.0,0.60077]
[1765951865326,0.60235831,86922.0,86921.0,0.31033]
[1765951865540,0.76602831,86922.0,86921.0,0.002]
[1765951866836,0.76602831,86922.0,86921.0,0.29343]
[1765951867029,0.60235831,86922.0,86921.0,0.57325]
[1765951868733,0.60235831,86922.0,86921.0,0.57225]
[1765951869731,0.60235831,86922.0,86921.0,0.57125]
[1765951869938,0.60235831,86922.0,86921.0,0.57225]
[1765951870339,0.00683831,86922.0,86921.0,0.57225]
[1765951871025,1.6783472,86946.0,86945.0,0.57125]
[1765951871026,0.5671525,86946.0,86945.0,0.57125]
[1765951871224,1.1694725,86946.0,86945.0,0.582754]
[1765951872634,1.1724725,86946.0,86945.0,0.582754]
[1765951872835,1.1744725,86946.0,86945.0,0.582754]
[1765951873335,1.1724725,86946.0,86945.0,0.582754]
[1765951873532,1.1694725,86946.0,86945.0,0.29143]
[1765951873728,0.56698,86942.0,86941.0,0.3608]
[1765951874743,0.56698,86938.0,86937.0,0.0001725]
[1765951875842,0.56798,86938.0,86937.0,0.0001725]
[1765951876241,0.56798,86938.0,86937.0,0.5714225]
[1765951877039,0.56798,86938.0,86937.0,0.2916025]
[1765951877238,0.56798,86938.0,86937.0,0.0001725]
[1765951878043,0.56698,86938.0,86937.0,0.0001725]
[1765951878350,0.56698,86938.0,86937.0,0.0011725]
[1765951878846,0.56798,86938.0,86937.0,0.0001725]
[1765951879742,0.56898,86938.0,86937.0,0.0001725]
[1765951881538,0.0612547,86948.0,86946.0,0.29143]
[1765951881749,9e-08,86973.0,86972.0,0.57125]
[1765951882044,9e-08,86973.0,86968.0,0.16876]
[1765951882045,0.33948,87002.0,86977.0,0.5827498]
[1765951882250,0.34308,86990.0,86977.0,1.3043498]
[1765951882636,0.0001725,86986.0,86977.0,1.3043498]
[1765951884457,0.00629945,86978.0,86977.0,1.3043498]
[1765951884645,0.27695945,86978.0,86977.0,1.3043498]
[1765951884842,0.57327945,86978.0,86977.0,1.3043498]
[1765951885349,0.27695945,86978.0,86977.0,1.3043498]
[1765951885652,0.57327945,86978.0,86977.0,1.3043498]
[1765951886041,0.57327945,86978.0,86977.0,1.0245298]
[1765951888556,0.27695945,86978.0,86977.0,1.0245298]
[1765951888744,0.00629945,86978.0,86977.0,1.0245298]
[1765951892347,0.27695945,86978.0,86977.0,1.0245298]
[1765951892554,0.57327945,86978.0,86977.0,1.0245298]
[1765951892861,0.27695945,86978.0,86977.0,1.0245298]
[1765951893459,0.00629945,86978.0,86977.0,1.0245298]
[1765951906361,0.0001725,86986.0,86983.0,0.693319]
[1765951907566,0.01179161,86984.0,86983.0,0.693319]
[1765951907770,0.01479161,86984.0,86983.0,0.693319]
[1765951908966,0.16694,87010.0,87009.0,0.68182]
[1765951908967,0.8573654,87010.0,87009.0,0.68182]
[1765951909168,0.8573654,87010.0,87009.0,1.0541155]
[1765951909363,0.8573654,87010.0,87009.0,1.04262]
[1765951909961,0.33203,87010.0,87009.0,1.04262]
[1765951910161,0.00229839,87018.0,87017.0,0.9080145]
[1765951910363,0.00229839,87018.0,87009.0,0.3608]
[1765951910364,0.19886,87017.0,87011.0,0.68182]
[1765951910669,0.87779,87017.0,87016.0,0.3608]
[1765951910876,0.67893,87017.0,87016.0,1.04262]
[1765951911172,0.33203,87017.0,87016.0,1.25732]
[1765951911374,0.00229839,87018.0,87017.0,0.6933145]
[1765951912073,0.87102,87031.0,87016.0,0.5755]
[1765951912074,1.54995,87031.0,87030.0,0.33072]
[1765951912279,0.67893,87031.0,87030.0,0.68182]
[1765951912482,0.33203,87031.0,87030.0,0.68182]
[1765951912974,0.02891167,87041.0,87030.0,0.68182]
[1765951912975,1.10135478,87051.0,87050.0,0.68182]
[1765951913275,1.10135478,87051.0,87045.0,0.0114906]
[1765951913276,0.67893,87046.0,87045.0,0.68182]
[1765951913476,0.67893,87046.0,87045.0,0.33072]
[1765951914374,0.68193,87046.0,87045.0,0.33072]
[1765951914575,0.67893,87043.0,87042.0,0.36097239]
[1765951914772,0.67893,87043.0,87042.0,0.00017239]
[1765951915273,0.87557,87039.0,87038.0,0.3608]
[1765951915467,0.67893,87031.0,87030.0,0.3608]
[1765951915871,0.33203,87031.0,87030.0,1.04262]
[1765951916068,0.33203,87031.0,87030.0,1.25732]
[1765951916269,0.003,87043.0,87038.0,0.68182]
[1765951916270,0.67909204,87039.0,87038.0,0.68182]
[1765951916571,0.67909204,87039.0,87038.0,1.04262]
[1765951916772,1.01112204,87039.0,87038.0,1.04262]
[1765951916976,0.99947744,87039.0,87038.0,1.04262]
[1765951917467,1.00147744,87039.0,87038.0,1.04262]
[1765951918068,1.00347744,87039.0,87038.0,1.04262]
[1765951918275,1.00347744,87039.0,87038.0,0.3608]
[1765951918883,1.00347744,87039.0,87038.0,1.04262]
[1765951919174,1.00347744,87039.0,87038.0,0.3608]
[1765951919681,0.67893,87031.0,87030.0,1.04262]
[1765951919869,0.67893,87031.0,87030.0,0.3608]
[1765951920774,0.67893,87031.0,87030.0,0.69152]
[1765951920971,0.67893,87031.0,87030.0,1.04262]
[1765951921173,0.00217204,87039.0,87038.0,0.68182]
[1765951921487,0.68122733,87058.0,87057.0,0.33072]
[1765951921668,0.68122733,87058.0,87057.0,1.04262]
[1765951922067,0.33432733,87058.0,87057.0,1.04262]
[1765951922272,0.68122733,87058.0,87057.0,0.3608]
[1765951922684,0.68522733,87058.0,87057.0,0.3608]
[1765951923274,0.67893,87050.0,87049.0,0.00017239]
[1765951924084,1.40217,87050.0,87049.0,0.00017239]
[1765951924779,1.40217,87050.0,87049.0,0.00117239]
[1765951925985,1.40217,87050.0,87049.0,0.33189239]
[1765951926172,1.40217,87050.0,87049.0,0.66584239]
[1765951926374,1.40217,87050.0,87049.0,0.66484239]
[1765951927079,1.40217,87050.0,87049.0,0.66584239]
[1765951927882,1.40217,87050.0,87049.0,0.66484239]
[1765951928180,1.40217,87050.0,87049.0,0.66684239]
[1765951928884,0.67787,87050.0,87049.0,0.66584239]
[1765951929584,0.00229733,87058.0,87050.0,0.6697]
[1765951929585,0.66816,87051.0,87050.0,0.6697]
[1765951929782,0.66816,87050.0,87049.0,0.00117239]
[1765951929986,0.84655,87050.0,87049.0,0.00117239]
[1765951930888,0.84655,87050.0,87049.0,0.00217239]
[1765951931386,0.66816,87050.0,87049.0,0.33792239]
[1765951931588,0.66816,87050.0,87049.0,0.33692239]
[1765951932374,0.66816,87050.0,87049.0,0.33592239]
[1765951932586,0.66816,87050.0,87049.0,0.33792239]
[1765951932977,0.66816,87050.0,87049.0,0.33692239]
[1765951933177,0.66816,87050.0,87049.0,0.67187239]
[1765951933581,0.66816,87050.0,87049.0,0.67087239]
[1765951933782,0.66816,87050.0,87049.0,0.67187239]
[1765951934183,0.66816,87050.0,87049.0,0.66987239]
[1765951934389,0.66816,87050.0,87049.0,0.67087239]
[1765951936988,0.66816,87050.0,87049.0,0.00117239]
[1765951937391,0.66816,87050.0,87049.0,0.00217239]
[1765951938091,0.66816,87050.0,87049.0,0.00117239]
[1765951940083,0.66816,87050.0,87012.0,0.03055142]
[1765951940084,0.66816,87013.0,87012.0,0.03055142]
[1765951940297,0.66816,86995.0,86994.0,0.2192275]
[1765951940596,1.10492,86995.0,86994.0,0.87743]
[1765951941483,1.10492,86995.0,86994.0,0.88043]
[1765951941893,1.10492,86995.0,86994.0,0.33875]
[1765951942095,1.10492,86995.0,86994.0,0.003]
[1765951942593,1.10492,86995.0,86994.0,0.004]
[1765951943193,1.10492,86995.0,86994.0,0.001]
[1765951943396,1.10492,86995.0,86994.0,0.002]
[1765951944890,1.39136,86995.0,86994.0,0.002]
[1765951948999,0.6796584,86987.0,86986.0,0.00017239]
[1765951949202,1.0404584,86987.0,86986.0,0.00017239]
[1765951949702,1.7635384,86987.0,86986.0,0.00017239]
[1765951950196,1.7635384,86987.0,86986.0,0.00217239]
[1765951950400,1.7635384,86987.0,86986.0,0.00417239]
[1765951950792,1.0404584,86987.0,86986.0,0.67387239]
[1765951950987,1.4027784,86987.0,86986.0,0.67387239]
[1765951952896,1.4027784,86987.0,86986.0,0.00417239]
[1765951954793,1.4026984,86987.0,86986.0,0.00417239]
[1765951955610,0.6546595,86979.0,86976.0,0.3608]
[1765951955800,1.3776595,86979.0,86976.0,0.3608]
[1765951956704,1.3776595,86979.0,86970.0,0.36097239]
[1765951957107,1.3776595,86979.0,86978.0,0.00441938]
[1765951958104,1.3776595,86979.0,86978.0,0.00541938]
[1765951958408,0.6546595,86979.0,86978.0,0.66490938]
[1765951958700,0.3340095,86979.0,86978.0,0.66490938]
[1765951958911,1.0570095,86979.0,86978.0,0.66490938]
[1765951959093,1.08541286,86979.0,86978.0,0.66490938]
[1765951959898,0.71132286,86979.0,86978.0,0.66490938]
[1765951960089,1.43440286,86979.0,86978.0,0.66490938]
[1765951963806,1.42290336,86979.0,86978.0,0.66490938]
[1765951964204,0.69982336,86979.0,86978.0,0.66490938]
[1765951964407,1.42274336,86979.0,86978.0,0.66490938]
[1765951964608,1.42270336,86979.0,86978.0,0.66490938]
[1765951969209,1.42254336,86979.0,86978.0,0.66490938]
[1765951969507,1.42254336,86979.0,86978.0,0.00541938]
[1765951970103,1.42254336,86979.0,86978.0,0.32971938]
[1765951971503,1.42254336,86979.0,86978.0,0.00541938]
[1765951971709,0.6967006,86971.0,86970.0,0.36097239]
[1765951971907,1.4193406,86971.0,86970.0,0.36097239]
[1765951972705,1.41946053,86971.0,86970.0,0.36097239]
[1765951972904,1.41946053,86971.0,86970.0,0.36297239]
[1765951973798,1.41946053,86971.0,86970.0,0.00217239]
[1765951974202,1.42046053,86971.0,86970.0,0.00217239]
[1765951974707,1.42146053,86971.0,86970.0,0.00017239]
[1765951975303,1.42146053,86971.0,86959.0,0.2]
[1765951975304,0.696702,86960.0,86959.0,0.65949]
[1765951975610,0.6852,86953.0,86952.0,0.86309]
[1765951975810,1.40787993,86953.0,86952.0,0.86309]
[1765951976213,0.72267993,86953.0,86952.0,0.86309]
[1765951976415,0.001,86971.0,86970.0,0.65949]
[1765951976606,1.05985,86971.0,86970.0,0.65949]
[1765951977204,1.0713506,86971.0,86970.0,0.65949]
[1765951977404,1.05885,86971.0,86970.0,0.65949]
[1765951977803,1.40804,86971.0,86970.0,0.65949]
[1765951978203,1.40804,86971.0,86962.0,0.0001725]
[1765951978204,0.6967016,86963.0,86962.0,0.0001725]
[1765951978400,0.6967029,86953.0,86952.0,0.002]
[1765951978605,1.4197429,86953.0,86952.0,0.002]
[1765951978805,0.6852,86948.0,86947.0,1.22389]
[1765951979208,0.6852,86948.0,86947.0,0.33564433]
[1765951979511,0.33629,86939.0,86938.0,0.6732954]
[1765951979713,0.3477928,86954.0,86953.0,0.65949]
[1765951980020,1.0710328,86954.0,86953.0,0.65949]
[1765951980207,1.05953,86954.0,86953.0,0.65949]
[1765951981209,0.33629,86954.0,86953.0,1.02029]
[1765951981421,1.05957,86954.0,86953.0,1.02029]
[1765951981608,1.06057,86954.0,86953.0,0.65949]
[1765951981810,0.6852,86946.0,86945.0,0.3608]
[1765951982109,1.40848,86946.0,86945.0,0.3608]
[1765951982311,1.40848,86946.0,86938.0,0.0023005]
[1765951982312,0.6852,86939.0,86938.0,0.0023005]
[1765951982517,1.40852,86939.0,86938.0,0.0023005]
[1765951982717,1.4200248,86939.0,86938.0,0.0023005]
[1765951984612,1.4200248,86939.0,86938.0,0.0033005]
[1765951985118,1.4200248,86939.0,86938.0,0.0043005]
[1765951985708,0.6779358,86931.0,86930.0,0.0001725]
[1765951985907,1.4012158,86931.0,86930.0,0.0001725]
[1765951986706,0.6779365,86926.0,86925.0,0.5608]
[1765951986907,0.6779365,86926.0,86925.0,0.3608]
[1765951987716,0.0115065,86926.0,86925.0,1.00181]
[1765951987921,0.0001725,86934.0,86933.0,0.64101]
[1765951988121,0.75228209,86945.0,86944.0,0.64101]
[1765951988122,0.72328,86945.0,86944.0,0.64101]
[1765951988314,0.72328,86945.0,86944.0,0.6525141]
[1765951988514,1.05348,86945.0,86944.0,1.0133141]
[1765951989023,1.05348,86945.0,86944.0,1.00181]
[1765951990624,1.05348,86945.0,86944.0,1.00281]
[1765951991023,1.05348,86945.0,86944.0,1.00181]
[1765951995215,1.05348,86945.0,86944.0,0.3608]
[1765951995627,1.05348,86945.0,86936.0,0.0001725]
[1765951995628,0.50996,86925.0,86904.0,0.55647]
[1765951995826,0.50996,86905.0,86904.0,0.8481894]
[1765951996020,1.03988,86905.0,86904.0,1.03668]
[1765951996828,1.03998438,86905.0,86904.0,0.83668]
[1765951997722,1.03998438,86905.0,86904.0,0.84068]
[1765951997928,0.53002438,86905.0,86904.0,0.84468]
[1765951998329,1.16368438,86905.0,86904.0,0.84468]
[1765951998528,1.16368438,86905.0,86904.0,0.20367]
[1765952001424,1.16368438,86905.0,86904.0,0.004]
[1765952001622,1.16368438,86905.0,86896.0,0.0001726]
[1765952001623,0.6371401,86899.0,86896.0,0.0001726]
[1765952001823,0.9979401,86899.0,86896.0,0.0001726]
[1765952003331,0.62438,86897.0,86896.0,0.0001726]
[1765952005022,0.62638,86897.0,86896.0,0.0001726]
[1765952005218,0.62638,86897.0,86886.0,0.19567]
[1765952005423,0.62086,86880.0,86879.0,0.31483]
[1765952005623,0.62096438,86880.0,86879.0,0.64101]
[1765952005819,0.00010438,86880.0,86879.0,0.84101]
[1765952007228,0.00010438,86880.0,86879.0,0.84201]
[1765952008721,0.00010438,86880.0,86879.0,0.84401]
[1765952009730,4.38e-06,86880.0,86879.0,0.84401]
[1765952010729,4.38e-06,86880.0,86879.0,0.8555227]
[1765952018537,6.98e-06,86888.0,86887.0,0.6728017]
[1765952019834,6.98e-06,86888.0,86887.0,0.6738017]
[1765952021443,0.0115095,86904.0,86902.0,0.6727997]
[1765952021639,0.70638633,86903.0,86902.0,0.6727997]
[1765952022526,0.02898633,86903.0,86902.0,0.6727997]
[1765952022731,0.2978295,86904.0,86903.0,0.66129]
[1765952023337,0.32710898,86904.0,86903.0,0.66129]
[1765952023934,0.33010898,86904.0,86903.0,0.66129]
[1765952024742,0.61637898,86904.0,86903.0,0.66129]
[1765952025333,0.60486948,86904.0,86903.0,0.66129]
[1765952026045,0.0001726,86911.0,86910.0,0.6727986]
[1765952026642,0.02856082,86911.0,86910.0,0.6727986]
[1765952026938,0.0001726,86911.0,86910.0,0.6727986]
[1765952027144,0.0021726,86911.0,86910.0,0.6727986]
[1765952027450,0.0031726,86911.0,86910.0,0.6727986]
[1765952027852,0.0011726,86911.0,86910.0,0.6727986]
[1765952029041,0.0001726,86911.0,86910.0,0.6727986]
[1765952032351,0.289276,86931.0,86930.0,0.66129]
[1765952032557,0.64817118,86931.0,86930.0,0.66129]